[Event "Titled Tuesday Blitz June 6 Late 2023"]
[White "Lopez Mulet, Inigo"]
[Black "Hajiyev, Kanan"]
[WhiteFideId "22235620"]
[BlackFideId "13404148"]
[WhiteElo "2302"]
[BlackElo "2115"]
[Result "1-0"]
[Round "5"]
[TimeControl "180+2"]
[Date "2023.06.07"]
[WhiteClock "0:01:49"]
[BlackClock "0:00:03"]
[Board "56"]

1. c3 {[%clk 0:02:59]}  c6 {[%clk 0:02:57]} 2. e4 {[%clk 0:02:58]}  d5 {[%clk 0:02:56]} 3. e5 {[%clk 0:02:59]}  c5 {[%clk 0:02:56]} 4. d4 {[%clk 0:02:59]}  cxd4 {[%clk 0:02:55]} 5. cxd4 {[%clk 0:03:00]}  Nc6 {[%clk 0:02:55]} 6. Nc3 {[%clk 0:03:00]}  Bf5 {[%clk 0:02:55]} 7. Bd3 {[%clk 0:02:58]}  Bxd3 {[%clk 0:02:53]} 8. Qxd3 {[%clk 0:02:59]}  e6 {[%clk 0:02:54]} 9. f4 {[%clk 0:02:59]}  Qb6 {[%clk 0:02:51]} 10. Nf3 {[%clk 0:02:59]}  Nh6 {[%clk 0:02:51]} 11. b3 {[%clk 0:02:55]}  Nf5 {[%clk 0:02:38]} 12. Ne2 {[%clk 0:02:53]}  Nb4 {[%clk 0:02:32]} 13. Qd2 {[%clk 0:02:51]}  Rc8 {[%clk 0:02:32]} 14. O-O {[%clk 0:02:51]}  Rc2 {[%clk 0:02:21]} 15. Qe1 {[%clk 0:02:50]}  Nxa2 {[%clk 0:01:23]} 16. g4 {[%clk 0:02:36]}  Bb4 {[%clk 0:00:59]} 17. Qd1 {[%clk 0:02:30]}  Nxc1 {[%clk 0:00:40]} 18. Qxc2 {[%clk 0:02:27]}  Nxe2+ {[%clk 0:00:40]} 19. Qxe2 {[%clk 0:02:15]}  Nxd4 {[%clk 0:00:40]} 20. Nxd4 {[%clk 0:02:15]}  Qxd4+ {[%clk 0:00:40]} 21. Kg2 {[%clk 0:02:16]}  O-O {[%clk 0:00:37]} 22. Rad1 {[%clk 0:02:15]}  Qb6 {[%clk 0:00:27]} 23. f5 {[%clk 0:02:16]}  d4 {[%clk 0:00:25]} 24. f6 {[%clk 0:02:15]}  g6 {[%clk 0:00:25]} 25. Rd3 {[%clk 0:02:14]}  Rd8 {[%clk 0:00:24]} 26. Rff3 {[%clk 0:02:14]}  a5 {[%clk 0:00:22]} 27. Rh3 {[%clk 0:02:14]}  Bf8 {[%clk 0:00:20]} 28. g5 {[%clk 0:02:12]}  Qc6+ {[%clk 0:00:21]} 29. Kg1 {[%clk 0:02:09]}  h5 {[%clk 0:00:21]} 30. gxh6 {[%clk 0:02:09]}  Kh7 {[%clk 0:00:21]} 31. Rhg3 {[%clk 0:02:06]}  Qc1+ {[%clk 0:00:21]} 32. Qd1 {[%clk 0:02:05]}  Qf4 {[%clk 0:00:20]} 33. Qe2 {[%clk 0:02:05]}  Rd5 {[%clk 0:00:19]} 34. h4 {[%clk 0:02:01]}  Rxe5 {[%clk 0:00:18]} 35. Qf2 {[%clk 0:02:01]}  Bxh6 {[%clk 0:00:14]} 36. Rxd4 {[%clk 0:01:54]}  Qxf2+ {[%clk 0:00:13]} 37. Kxf2 {[%clk 0:01:55]}  Rf5+ {[%clk 0:00:12]} 38. Rf3 {[%clk 0:01:56]}  Rb5 {[%clk 0:00:10]} 39. Rd7 {[%clk 0:01:55]}  Kg8 {[%clk 0:00:09]} 40. Rd8+ {[%clk 0:01:56]}  Kh7 {[%clk 0:00:09]} 41. Kg3 {[%clk 0:01:54]}  e5 {[%clk 0:00:05]} 42. Rd7 {[%clk 0:01:54]}  Kg8 {[%clk 0:00:05]} 43. Rc3 {[%clk 0:01:53]}  Bf4+ {[%clk 0:00:04]} 44. Kg4 {[%clk 0:01:53]}  g5 {[%clk 0:00:03]} 45. h5 {[%clk 0:01:49]}  e4 {[%clk 0:00:03]} 46. Rc8+ {[%clk 0:01:49]} 1-0


[Site "https://www.chess.com"]

[Event "Titled Tuesday Blitz June 6 Late 2023"]
[White "Skatchkov, Pavel"]
[Black "Camilla_Lee"]
[WhiteFideId "4121848"]
[WhiteElo "2476"]
[BlackElo "2496"]
[Result "1/2-1/2"]
[Round "5"]
[TimeControl "180+2"]
[Date "2023.06.07"]
[WhiteClock "0:00:10"]
[BlackClock "0:00:23"]
[Board "57"]

1. d4 {[%clk 0:02:54]}  Nf6 {[%clk 0:02:58]} 2. c4 {[%clk 0:02:53]}  c6 {[%clk 0:02:58]} 3. Nf3 {[%clk 0:02:53]}  d5 {[%clk 0:02:58]} 4. Nc3 {[%clk 0:02:53]}  dxc4 {[%clk 0:02:57]} 5. g3 {[%clk 0:02:52]}  g6 {[%clk 0:02:48]} 6. Bg2 {[%clk 0:02:50]}  Bg7 {[%clk 0:02:49]} 7. O-O {[%clk 0:02:50]}  Nfd7 {[%clk 0:02:40]} 8. a4 {[%clk 0:02:46]}  O-O {[%clk 0:02:40]} 9. e4 {[%clk 0:02:46]}  e5 {[%clk 0:02:40]} 10. dxe5 {[%clk 0:02:33]}  Nxe5 {[%clk 0:02:39]} 11. Qe2 {[%clk 0:02:28]}  Nxf3+ {[%clk 0:02:33]} 12. Bxf3 {[%clk 0:02:26]}  Be6 {[%clk 0:02:27]} 13. Rd1 {[%clk 0:02:25]}  Qe7 {[%clk 0:02:22]} 14. Bf4 {[%clk 0:02:24]}  Rd8 {[%clk 0:02:17]} 15. e5 {[%clk 0:02:14]}  Nd7 {[%clk 0:02:13]} 16. h4 {[%clk 0:01:59]}  h6 {[%clk 0:02:11]} 17. Qe3 {[%clk 0:01:56]}  Kh7 {[%clk 0:02:10]} 18. h5 {[%clk 0:01:31]}  g5 {[%clk 0:02:09]} 19. Qe4+ {[%clk 0:01:31]}  Kh8 {[%clk 0:02:06]} 20. Be3 {[%clk 0:01:30]}  Nxe5 {[%clk 0:01:55]} 21. Bg2 {[%clk 0:01:25]}  Nd3 {[%clk 0:01:39]} 22. Bh3 {[%clk 0:01:04]}  Nxb2 {[%clk 0:01:32]} 23. Rxd8+ {[%clk 0:01:02]}  Rxd8 {[%clk 0:01:33]} 24. Ne2 {[%clk 0:00:32]}  Rd1+ {[%clk 0:00:59]} 25. Rxd1 {[%clk 0:00:31]}  Nxd1 {[%clk 0:01:00]} 26. Bd4 {[%clk 0:00:27]}  Nb2 {[%clk 0:00:48]} 27. Nc3 {[%clk 0:00:14]}  Nd3 {[%clk 0:00:41]} 28. a5 {[%clk 0:00:13]}  Qd6 {[%clk 0:00:36]} 29. Bxg7+ {[%clk 0:00:11]}  Kxg7 {[%clk 0:00:37]} 30. Bf1 {[%clk 0:00:10]}  Qc5 {[%clk 0:00:33]} 31. Bxd3 {[%clk 0:00:09]}  cxd3 {[%clk 0:00:34]} 32. Qxd3 {[%clk 0:00:09]}  Qxa5 {[%clk 0:00:34]} 33. Qd4+ {[%clk 0:00:10]}  f6 {[%clk 0:00:31]} 34. Ne4 {[%clk 0:00:10]}  Qe5 {[%clk 0:00:30]} 35. Qd8 {[%clk 0:00:09]}  Qxe4 {[%clk 0:00:28]} 36. Qe7+ {[%clk 0:00:09]}  Kg8 {[%clk 0:00:22]} 37. Qe8+ {[%clk 0:00:09]}  Kh7 {[%clk 0:00:22]} 38. Qe7+ {[%clk 0:00:10]}  Kh8 {[%clk 0:00:22]} 39. Qe8+ {[%clk 0:00:10]}  Kg7 {[%clk 0:00:22]} 40. Qe7+ {[%clk 0:00:08]}  Kg8 {[%clk 0:00:22]} 41. Qe8+ {[%clk 0:00:09]}  Kg7 {[%clk 0:00:23]} 42. Qe7+ {[%clk 0:00:10]} 1/2-1/2


[Site "https://www.chess.com"]

[Event "Titled Tuesday Blitz June 6 Late 2023"]
[White "Harish, Neeraj"]
[Black "Safin, Robert"]
[WhiteFideId "30958130"]
[BlackFideId "34189120"]
[WhiteElo "1879"]
[BlackElo "2341"]
[Result "1-0"]
[Round "5"]
[TimeControl "180+2"]
[Date "2023.06.07"]
[WhiteClock "0:00:04"]
[BlackClock "0:00:13"]
[Board "62"]

1. e4 {[%clk 0:02:59]}  e6 {[%clk 0:03:00]} 2. d4 {[%clk 0:02:59]}  d5 {[%clk 0:03:01]} 3. e5 {[%clk 0:02:58]}  c5 {[%clk 0:03:00]} 4. c3 {[%clk 0:02:59]}  Qb6 {[%clk 0:02:59]} 5. Nf3 {[%clk 0:02:58]}  Nc6 {[%clk 0:02:59]} 6. Bd3 {[%clk 0:02:58]}  cxd4 {[%clk 0:02:58]} 7. O-O {[%clk 0:02:58]}  Nge7 {[%clk 0:02:52]} 8. h4 {[%clk 0:02:44]}  Bd7 {[%clk 0:02:51]} 9. Re1 {[%clk 0:02:44]}  h6 {[%clk 0:02:47]} 10. h5 {[%clk 0:02:39]}  a6 {[%clk 0:02:31]} 11. Nbd2 {[%clk 0:02:04]}  dxc3 {[%clk 0:02:30]} 12. bxc3 {[%clk 0:02:04]}  Qc7 {[%clk 0:02:29]} 13. Ba3 {[%clk 0:01:55]}  Nc8 {[%clk 0:02:24]} 14. Bxf8 {[%clk 0:01:53]}  Rxf8 {[%clk 0:02:22]} 15. c4 {[%clk 0:01:51]}  dxc4 {[%clk 0:02:18]} 16. Nxc4 {[%clk 0:01:51]}  b5 {[%clk 0:02:18]} 17. Ncd2 {[%clk 0:01:24]}  Nb6 {[%clk 0:02:17]} 18. Rc1 {[%clk 0:01:21]}  Ke7 {[%clk 0:01:51]} 19. Ne4 {[%clk 0:01:16]}  Rfd8 {[%clk 0:01:44]} 20. Nd6 {[%clk 0:00:59]}  Be8 {[%clk 0:01:36]} 21. Qe2 {[%clk 0:00:44]}  Nc8 {[%clk 0:01:29]} 22. Ne4 {[%clk 0:00:15]}  Qb6 {[%clk 0:01:23]} 23. Bb1 {[%clk 0:00:14]}  Ra7 {[%clk 0:01:17]} 24. Nc5 {[%clk 0:00:03]}  Rc7 {[%clk 0:01:12]} 25. Qe4 {[%clk 0:00:04]}  Nd4 {[%clk 0:01:04]} 26. Nxd4 {[%clk 0:00:02]}  Rxc5 {[%clk 0:01:02]} 27. Qh4+ {[%clk 0:00:03]}  Kd7 {[%clk 0:00:54]} 28. Rxc5 {[%clk 0:00:02]}  Qxc5 {[%clk 0:00:55]} 29. Rd1 {[%clk 0:00:02]}  Qe7 {[%clk 0:00:32]} 30. Nb3+ {[%clk 0:00:02]}  Kc6 {[%clk 0:00:23]} 31. Qxe7 {[%clk 0:00:03]}  Rxd1+ {[%clk 0:00:24]} 32. Kh2 {[%clk 0:00:03]}  Bd7 {[%clk 0:00:24]} 33. Qxf7 {[%clk 0:00:03]}  Rxb1 {[%clk 0:00:24]} 34. Qxg7 {[%clk 0:00:03]}  a5 {[%clk 0:00:24]} 35. Nxa5+ {[%clk 0:00:03]}  Kc7 {[%clk 0:00:23]} 36. Nb3 {[%clk 0:00:04]}  Rb2 {[%clk 0:00:22]} 37. Qxh6 {[%clk 0:00:04]}  Rxa2 {[%clk 0:00:23]} 38. Nc5 {[%clk 0:00:05]}  Kc6 {[%clk 0:00:16]} 39. Nxd7 {[%clk 0:00:05]}  Kxd7 {[%clk 0:00:17]} 40. Qg7+ {[%clk 0:00:06]}  Kc6 {[%clk 0:00:17]} 41. Qf7 {[%clk 0:00:06]}  Rc2 {[%clk 0:00:13]} 42. Qxe6+ {[%clk 0:00:06]}  Kb7 {[%clk 0:00:14]} 43. h6 {[%clk 0:00:06]}  b4 {[%clk 0:00:14]} 44. Qb3 {[%clk 0:00:06]}  Rc6 {[%clk 0:00:13]} 45. Qxb4+ {[%clk 0:00:06]}  Nb6 {[%clk 0:00:13]} 46. Qf4 {[%clk 0:00:04]}  Nd5 {[%clk 0:00:11]} 47. Qf7+ {[%clk 0:00:04]}  Nc7 {[%clk 0:00:12]} 48. h7 {[%clk 0:00:04]}  Rh6+ {[%clk 0:00:13]} 49. Kg3 {[%clk 0:00:04]}  Kc6 {[%clk 0:00:13]} 50. Kg4 {[%clk 0:00:04]}  Nd5 {[%clk 0:00:13]} 51. Kg5 {[%clk 0:00:04]} 1-0


[Site "https://www.chess.com"]

[Event "Titled Tuesday Blitz June 6 Late 2023"]
[White "Pasti, Aron"]
[Black "Ozer, Omer Faruk"]
[WhiteFideId "785857"]
[BlackFideId "6354564"]
[WhiteElo "2173"]
[BlackElo "2260"]
[Result "0-1"]
[Round "5"]
[TimeControl "180+2"]
[Date "2023.06.07"]
[WhiteClock "0:00:02"]
[BlackClock "0:00:12"]
[Board "67"]

1. e4 {[%clk 0:02:30]}  g6 {[%clk 0:02:54]} 2. Ne2 {[%clk 0:02:28]}  Bg7 {[%clk 0:02:54]} 3. d4 {[%clk 0:02:28]}  d6 {[%clk 0:02:51]} 4. h4 {[%clk 0:02:23]}  Nf6 {[%clk 0:02:46]} 5. Ng3 {[%clk 0:02:13]}  h5 {[%clk 0:02:38]} 6. Bg5 {[%clk 0:02:01]}  Nc6 {[%clk 0:02:28]} 7. c3 {[%clk 0:01:59]}  e5 {[%clk 0:02:23]} 8. d5 {[%clk 0:01:54]}  Ne7 {[%clk 0:02:23]} 9. Na3 {[%clk 0:01:53]}  Nh7 {[%clk 0:02:20]} 10. Bb5+ {[%clk 0:01:39]}  Kf8 {[%clk 0:01:59]} 11. Be3 {[%clk 0:01:31]}  c6 {[%clk 0:01:58]} 12. dxc6 {[%clk 0:01:29]}  bxc6 {[%clk 0:01:59]} 13. Bd3 {[%clk 0:01:26]}  Nf6 {[%clk 0:01:53]} 14. Nc4 {[%clk 0:01:23]}  Ng4 {[%clk 0:01:52]} 15. Be2 {[%clk 0:01:12]}  Nxe3 {[%clk 0:01:51]} 16. Nxe3 {[%clk 0:01:13]}  Rb8 {[%clk 0:01:47]} 17. Qc2 {[%clk 0:01:09]}  d5 {[%clk 0:01:44]} 18. Rd1 {[%clk 0:00:58]}  Be6 {[%clk 0:01:43]} 19. O-O {[%clk 0:00:56]}  Bh6 {[%clk 0:01:37]} 20. b4 {[%clk 0:00:46]}  Qb6 {[%clk 0:01:32]} 21. Qd2 {[%clk 0:00:30]}  Kg7 {[%clk 0:01:19]} 22. Qc1 {[%clk 0:00:22]}  Rhd8 {[%clk 0:01:14]} 23. exd5 {[%clk 0:00:18]}  cxd5 {[%clk 0:01:13]} 24. Qb2 {[%clk 0:00:05]}  Bxe3 {[%clk 0:01:11]} 25. fxe3 {[%clk 0:00:06]}  Qxe3+ {[%clk 0:01:11]} 26. Kh2 {[%clk 0:00:06]}  Rbc8 {[%clk 0:00:57]} 27. Rd3 {[%clk 0:00:07]}  Qb6 {[%clk 0:00:56]} 28. Rdf3 {[%clk 0:00:04]}  f5 {[%clk 0:00:49]} 29. c4 {[%clk 0:00:04]}  d4 {[%clk 0:00:48]} 30. c5 {[%clk 0:00:03]}  Qc7 {[%clk 0:00:48]} 31. Qd2 {[%clk 0:00:03]}  e4 {[%clk 0:00:47]} 32. Rf4 {[%clk 0:00:02]}  Qe5 {[%clk 0:00:43]} 33. Kh1 {[%clk 0:00:02]}  Nd5 {[%clk 0:00:41]} 34. Nxh5+ {[%clk 0:00:01]}  gxh5 {[%clk 0:00:40]} 35. Rxf5 {[%clk 0:00:01]}  e3 {[%clk 0:00:19]} 36. Rxe5 {[%clk 0:00:01]}  exd2 {[%clk 0:00:19]} 37. Rxe6 {[%clk 0:00:02]}  Nc3 {[%clk 0:00:19]} 38. Bd1 {[%clk 0:00:02]}  Re8 {[%clk 0:00:16]} 39. Rxe8 {[%clk 0:00:01]}  Rxe8 {[%clk 0:00:16]} 40. c6 {[%clk 0:00:02]}  Re1 {[%clk 0:00:16]} 41. c7 {[%clk 0:00:01]}  Rxf1+ {[%clk 0:00:16]} 42. Kh2 {[%clk 0:00:02]}  Rf8 {[%clk 0:00:12]} 0-1


[Site "https://www.chess.com"]

[Event "Titled Tuesday Blitz June 6 Late 2023"]
[White "Rios Escobar, Adan"]
[Black "Bjelobrk, Igor"]
[WhiteFideId "3403645"]
[BlackFideId "4300726"]
[WhiteElo "2480"]
[BlackElo "2319"]
[Result "0-1"]
[Round "5"]
[TimeControl "180+2"]
[Date "2023.06.07"]
[WhiteClock "0:00:02"]
[BlackClock "0:01:10"]
[Board "70"]

1. d4 {[%clk 0:02:55]}  e6 {[%clk 0:02:59]} 2. c4 {[%clk 0:02:54]}  b6 {[%clk 0:02:57]} 3. g3 {[%clk 0:02:52]}  Bb7 {[%clk 0:02:55]} 4. Nf3 {[%clk 0:02:52]}  Bb4+ {[%clk 0:02:51]} 5. Bd2 {[%clk 0:02:52]}  Bxf3 {[%clk 0:02:49]} 6. exf3 {[%clk 0:02:53]}  Bxd2+ {[%clk 0:02:48]} 7. Qxd2 {[%clk 0:02:52]}  Nf6 {[%clk 0:02:47]} 8. Nc3 {[%clk 0:02:50]}  d5 {[%clk 0:02:47]} 9. cxd5 {[%clk 0:02:44]}  Nxd5 {[%clk 0:02:46]} 10. O-O-O {[%clk 0:02:34]}  Nc6 {[%clk 0:02:46]} 11. Bb5 {[%clk 0:02:32]}  Qd7 {[%clk 0:02:43]} 12. Nxd5 {[%clk 0:02:28]}  Qxd5 {[%clk 0:02:41]} 13. Bxc6+ {[%clk 0:02:07]}  Qxc6+ {[%clk 0:02:41]} 14. Kb1 {[%clk 0:02:08]}  O-O-O {[%clk 0:02:29]} 15. Qc3 {[%clk 0:02:05]}  Kb7 {[%clk 0:02:22]} 16. f4 {[%clk 0:02:02]}  Rd6 {[%clk 0:02:20]} 17. Rhe1 {[%clk 0:01:46]}  Qd7 {[%clk 0:02:16]} 18. d5 {[%clk 0:01:30]}  f6 {[%clk 0:02:16]} 19. Qf3 {[%clk 0:01:18]}  exd5 {[%clk 0:02:14]} 20. Rc1 {[%clk 0:01:11]}  Re8 {[%clk 0:02:06]} 21. Red1 {[%clk 0:01:08]}  c6 {[%clk 0:02:05]} 22. Rd3 {[%clk 0:01:07]}  Rde6 {[%clk 0:02:03]} 23. Rdc3 {[%clk 0:01:07]}  d4 {[%clk 0:02:00]} 24. Rc4 {[%clk 0:01:06]}  d3 {[%clk 0:01:53]} 25. Rd1 {[%clk 0:00:50]}  Rd6 {[%clk 0:01:48]} 26. b4 {[%clk 0:00:45]}  Rd5 {[%clk 0:01:34]} 27. Rd2 {[%clk 0:00:42]}  Rd8 {[%clk 0:01:31]} 28. a4 {[%clk 0:00:39]}  a6 {[%clk 0:01:31]} 29. Kb2 {[%clk 0:00:39]}  Qd6 {[%clk 0:01:31]} 30. Kc3 {[%clk 0:00:37]}  Rd7 {[%clk 0:01:31]} 31. h4 {[%clk 0:00:29]}  h5 {[%clk 0:01:30]} 32. f5 {[%clk 0:00:28]}  Qe5+ {[%clk 0:01:29]} 33. Kb3 {[%clk 0:00:27]}  Qa1 {[%clk 0:01:25]} 34. b5 {[%clk 0:00:22]}  axb5 {[%clk 0:01:24]} 35. Rc3 {[%clk 0:00:01]}  bxa4+ {[%clk 0:01:18]} 36. Kb4 {[%clk 0:00:01]}  Rb5+ {[%clk 0:01:13]} 37. Kc4 {[%clk 0:00:02]}  Rc5+ {[%clk 0:01:12]} 38. Kb4 {[%clk 0:00:01]}  Qxc3+ {[%clk 0:01:11]} 39. Kxa4 {[%clk 0:00:02]}  b5# {[%clk 0:01:10]} 0-1


[Site "https://www.chess.com"]

[Event "Titled Tuesday Blitz June 6 Late 2023"]
[White "Van Dael, Siem"]
[Black "Schnaider, Ilan"]
[WhiteFideId "1049771"]
[BlackFideId "169013"]
[WhiteElo "2336"]
[BlackElo "2224"]
[Result "1-0"]
[Round "5"]
[TimeControl "180+2"]
[Date "2023.06.07"]
[WhiteClock "0:00:07"]
[BlackClock "0:00:09"]
[Board "71"]

1. e4 {[%clk 0:02:50]}  c5 {[%clk 0:02:57]} 2. Nf3 {[%clk 0:02:46]}  d6 {[%clk 0:02:58]} 3. d4 {[%clk 0:02:43]}  cxd4 {[%clk 0:02:59]} 4. Nxd4 {[%clk 0:02:42]}  Nf6 {[%clk 0:02:59]} 5. Nc3 {[%clk 0:02:42]}  a6 {[%clk 0:03:00]} 6. Be3 {[%clk 0:02:43]}  Ng4 {[%clk 0:03:00]} 7. Bc1 {[%clk 0:02:43]}  Nc6 {[%clk 0:02:59]} 8. f3 {[%clk 0:02:42]}  Nf6 {[%clk 0:02:57]} 9. Be3 {[%clk 0:02:38]}  e6 {[%clk 0:02:53]} 10. Qd2 {[%clk 0:02:37]}  Qc7 {[%clk 0:02:53]} 11. O-O-O {[%clk 0:02:37]}  b5 {[%clk 0:02:39]} 12. Nxc6 {[%clk 0:02:34]}  Qxc6 {[%clk 0:02:38]} 13. Ne2 {[%clk 0:02:34]}  Bb7 {[%clk 0:02:32]} 14. Nd4 {[%clk 0:02:34]}  Qc7 {[%clk 0:02:32]} 15. g4 {[%clk 0:02:34]}  Be7 {[%clk 0:02:17]} 16. Kb1 {[%clk 0:02:34]}  Rc8 {[%clk 0:01:52]} 17. h4 {[%clk 0:02:33]}  Nd7 {[%clk 0:01:48]} 18. g5 {[%clk 0:02:31]}  Ne5 {[%clk 0:01:42]} 19. h5 {[%clk 0:02:27]}  d5 {[%clk 0:01:23]} 20. f4 {[%clk 0:02:22]}  Ng4 {[%clk 0:01:09]} 21. e5 {[%clk 0:02:17]}  Nxe3 {[%clk 0:01:04]} 22. Qxe3 {[%clk 0:02:16]}  Bc5 {[%clk 0:01:04]} 23. Rh2 {[%clk 0:02:12]}  Qb6 {[%clk 0:00:55]} 24. Rhd2 {[%clk 0:02:02]}  g6 {[%clk 0:00:49]} 25. Qh3 {[%clk 0:01:53]}  Ke7 {[%clk 0:00:36]} 26. Bg2 {[%clk 0:01:43]}  Qc7 {[%clk 0:00:30]} 27. c3 {[%clk 0:01:28]}  b4 {[%clk 0:00:25]} 28. Rc1 {[%clk 0:01:27]}  bxc3 {[%clk 0:00:23]} 29. Rxc3 {[%clk 0:01:25]}  Qb6 {[%clk 0:00:21]} 30. Rb3 {[%clk 0:01:14]}  Qa7 {[%clk 0:00:20]} 31. Qc3 {[%clk 0:00:52]}  Rc7 {[%clk 0:00:11]} 32. Qa5 {[%clk 0:00:27]}  Rhc8 {[%clk 0:00:10]} 33. Rc2 {[%clk 0:00:25]}  Qb8 {[%clk 0:00:03]} 34. Rbc3 {[%clk 0:00:12]}  Qa7 {[%clk 0:00:01]} 35. Nb3 {[%clk 0:00:10]}  Bb6 {[%clk 0:00:02]} 36. Rxc7+ {[%clk 0:00:10]}  Rxc7 {[%clk 0:00:01]} 37. Rxc7+ {[%clk 0:00:11]}  Kd8 {[%clk 0:00:01]} 38. Rxb7 {[%clk 0:00:06]}  Qxb7 {[%clk 0:00:01]} 39. Qb4 {[%clk 0:00:06]}  Qc7 {[%clk 0:00:01]} 40. Qf8+ {[%clk 0:00:05]}  Kd7 {[%clk 0:00:02]} 41. Qxf7+ {[%clk 0:00:05]}  Kd8 {[%clk 0:00:03]} 42. Qf8+ {[%clk 0:00:03]}  Kd7 {[%clk 0:00:03]} 43. Qf7+ {[%clk 0:00:04]}  Kd8 {[%clk 0:00:04]} 44. Qxc7+ {[%clk 0:00:04]}  Kxc7 {[%clk 0:00:05]} 45. hxg6 {[%clk 0:00:04]}  hxg6 {[%clk 0:00:05]} 46. Bh3 {[%clk 0:00:04]}  Kd7 {[%clk 0:00:06]} 47. Nd2 {[%clk 0:00:03]}  Be3 {[%clk 0:00:07]} 48. Nf3 {[%clk 0:00:04]}  Bxf4 {[%clk 0:00:07]} 49. Kc2 {[%clk 0:00:05]}  Ke7 {[%clk 0:00:07]} 50. Kd3 {[%clk 0:00:05]}  Bc1 {[%clk 0:00:07]} 51. b3 {[%clk 0:00:06]}  a5 {[%clk 0:00:07]} 52. Kd4 {[%clk 0:00:06]}  Bb2+ {[%clk 0:00:07]} 53. Kc5 {[%clk 0:00:07]}  Bc1 {[%clk 0:00:05]} 54. Kb5 {[%clk 0:00:06]}  Bd2 {[%clk 0:00:05]} 55. Nxd2 {[%clk 0:00:06]}  a4 {[%clk 0:00:06]} 56. bxa4 {[%clk 0:00:06]}  Kd7 {[%clk 0:00:04]} 57. Nf3 {[%clk 0:00:06]}  Kc7 {[%clk 0:00:05]} 58. Nd4 {[%clk 0:00:06]}  Kd7 {[%clk 0:00:05]} 59. Bxe6+ {[%clk 0:00:07]}  Ke7 {[%clk 0:00:06]} 60. Bxd5 {[%clk 0:00:07]}  Kd8 {[%clk 0:00:07]} 61. Kc6 {[%clk 0:00:07]}  Kc8 {[%clk 0:00:07]} 62. e6 {[%clk 0:00:07]}  Kb8 {[%clk 0:00:08]} 63. e7 {[%clk 0:00:07]}  Ka7 {[%clk 0:00:08]} 64. e8=Q {[%clk 0:00:07]}  Ka6 {[%clk 0:00:09]} 65. Qa8# {[%clk 0:00:07]} 1-0


[Site "https://www.chess.com"]

[Event "Titled Tuesday Blitz June 6 Late 2023"]
[White "Seletsky, Grigory"]
[Black "Gomez Ledo, Roberto Carlos"]
[WhiteFideId "14112191"]
[BlackFideId "3507076"]
[WhiteElo "2491"]
[BlackElo "2378"]
[Result "1-0"]
[Round "5"]
[TimeControl "180+2"]
[Date "2023.06.07"]
[WhiteClock "0:00:07"]
[BlackClock "0:00:12"]
[Board "72"]

1. e4 {[%clk 0:02:59]}  d6 {[%clk 0:02:59]} 2. d4 {[%clk 0:02:59]}  Nf6 {[%clk 0:03:00]} 3. f3 {[%clk 0:02:58]}  h5 {[%clk 0:02:54]} 4. c4 {[%clk 0:02:57]}  e5 {[%clk 0:02:49]} 5. d5 {[%clk 0:02:55]}  c5 {[%clk 0:02:48]} 6. Nc3 {[%clk 0:02:53]}  Be7 {[%clk 0:02:47]} 7. Bd3 {[%clk 0:02:52]}  Nbd7 {[%clk 0:02:47]} 8. Be3 {[%clk 0:02:51]}  h4 {[%clk 0:02:43]} 9. Qd2 {[%clk 0:02:51]}  Nf8 {[%clk 0:02:40]} 10. Nge2 {[%clk 0:02:45]}  Ng6 {[%clk 0:02:41]} 11. O-O-O {[%clk 0:02:43]}  Nh7 {[%clk 0:02:39]} 12. g3 {[%clk 0:02:35]}  Bg5 {[%clk 0:02:32]} 13. f4 {[%clk 0:02:34]}  Bh6 {[%clk 0:02:32]} 14. Kb1 {[%clk 0:02:25]}  h3 {[%clk 0:02:30]} 15. Rhf1 {[%clk 0:01:55]}  Nf6 {[%clk 0:02:29]} 16. Ng1 {[%clk 0:01:42]}  Ng4 {[%clk 0:02:26]} 17. Rf3 {[%clk 0:01:21]}  Nxe3 {[%clk 0:02:23]} 18. Qxe3 {[%clk 0:01:20]}  Bg4 {[%clk 0:02:23]} 19. Rdf1 {[%clk 0:01:19]}  Bxf3 {[%clk 0:02:17]} 20. Rxf3 {[%clk 0:01:18]}  Qf6 {[%clk 0:02:03]} 21. Nce2 {[%clk 0:01:17]}  O-O {[%clk 0:01:56]} 22. Nxh3 {[%clk 0:01:15]}  a6 {[%clk 0:01:54]} 23. Qf2 {[%clk 0:01:14]}  b5 {[%clk 0:01:50]} 24. f5 {[%clk 0:01:13]}  Ne7 {[%clk 0:01:44]} 25. g4 {[%clk 0:01:13]}  Bg5 {[%clk 0:01:38]} 26. Kc2 {[%clk 0:00:26]}  bxc4 {[%clk 0:01:34]} 27. Bxc4 {[%clk 0:00:25]}  Rfb8 {[%clk 0:01:35]} 28. Nxg5 {[%clk 0:00:24]}  Qxg5 {[%clk 0:01:34]} 29. Qg3 {[%clk 0:00:22]}  Rb4 {[%clk 0:01:27]} 30. b3 {[%clk 0:00:20]}  f6 {[%clk 0:01:11]} 31. h4 {[%clk 0:00:20]}  Qh6 {[%clk 0:01:11]} 32. g5 {[%clk 0:00:19]}  fxg5 {[%clk 0:01:11]} 33. hxg5 {[%clk 0:00:19]}  Qh1 {[%clk 0:01:11]} 34. Qg4 {[%clk 0:00:17]}  Rab8 {[%clk 0:01:08]} 35. Nc3 {[%clk 0:00:16]}  Rxc4 {[%clk 0:00:54]} 36. bxc4 {[%clk 0:00:15]}  Qa1 {[%clk 0:00:54]} 37. Qh5 {[%clk 0:00:11]}  Rb2+ {[%clk 0:00:20]} 38. Kd3 {[%clk 0:00:09]}  Rb8 {[%clk 0:00:12]} 39. f6 {[%clk 0:00:07]} 1-0


[Site "https://www.chess.com"]